[Event "Titled Tuesday Blitz November 29 Late 2022"]
[White "Radovanovic, Dusan"]
[Black "Poliakova, Varvara"]
[WhiteFideId "926868"]
[BlackFideId "13518313"]
[WhiteElo "2341"]
[BlackElo "2099"]
[Result "0-1"]
[Round "06"]
[TimeControl "180+1"]
[Date "2022.11.30"]
[WhiteClock "0:00:23"]
[BlackClock "0:01:39"]

1. e4 {[%clk 0:03:00]}  e5 {[%clk 0:02:56]} 2. Nf3 {[%clk 0:03:01]}  Nc6 {[%clk 0:02:56]} 3. Nc3 {[%clk 0:03:01]}  Nf6 {[%clk 0:02:55]} 4. Bb5 {[%clk 0:03:02]}  Nd4 {[%clk 0:02:54]} 5. Nxe5 {[%clk 0:03:02]}  Nxb5 {[%clk 0:02:53]} 6. Nxb5 {[%clk 0:03:01]}  c6 {[%clk 0:02:48]} 7. Nc3 {[%clk 0:03:01]}  d5 {[%clk 0:02:44]} 8. exd5 {[%clk 0:03:01]}  Nxd5 {[%clk 0:02:44]} 9. Nxd5 {[%clk 0:02:57]}  Qxd5 {[%clk 0:02:42]} 10. O-O {[%clk 0:02:52]}  Be6 {[%clk 0:02:39]} 11. d4 {[%clk 0:02:33]}  O-O-O {[%clk 0:02:37]} 12. Be3 {[%clk 0:02:32]}  f6 {[%clk 0:02:33]} 13. Nd3 {[%clk 0:02:29]}  Bd6 {[%clk 0:02:29]} 14. b3 {[%clk 0:02:12]}  h5 {[%clk 0:02:25]} 15. c4 {[%clk 0:02:10]}  Qf5 {[%clk 0:02:23]} 16. Rc1 {[%clk 0:02:05]}  h4 {[%clk 0:02:20]} 17. d5 {[%clk 0:01:58]}  Bd7 {[%clk 0:02:18]} 18. c5 {[%clk 0:01:58]}  Be5 {[%clk 0:02:13]} 19. Nxe5 {[%clk 0:01:57]}  fxe5 {[%clk 0:02:11]} 20. b4 {[%clk 0:01:40]}  h3 {[%clk 0:02:09]} 21. Qf3 {[%clk 0:00:50]}  hxg2 {[%clk 0:02:03]} 22. Qxg2 {[%clk 0:00:44]}  Qh5 {[%clk 0:02:00]} 23. Rfd1 {[%clk 0:00:35]}  Bh3 {[%clk 0:01:55]} 24. Qg3 {[%clk 0:00:34]}  Bg4 {[%clk 0:01:54]} 25. Rd2 {[%clk 0:00:29]}  cxd5 {[%clk 0:01:48]} 26. c6 {[%clk 0:00:28]}  b6 {[%clk 0:01:47]} 27. Bxb6 {[%clk 0:00:22]}  axb6 {[%clk 0:01:43]} 28. Qa3 {[%clk 0:00:23]}  Qxh2+ {[%clk 0:01:39]} 0-1


[Site "https://www.chess.com"]

[Event "Titled Tuesday Blitz November 29 Late 2022"]
[White "Rodriguez Fontecha, Marcos"]
[Black "Nasuta, Grzegorz"]
[WhiteFideId "2256576"]
[BlackFideId "1141686"]
[WhiteElo "2263"]
[BlackElo "2440"]
[Result "0-1"]
[Round "06"]
[TimeControl "180+1"]
[Date "2022.11.30"]
[WhiteClock "0:00:06"]
[BlackClock "0:00:10"]

1. Nf3 {[%clk 0:03:00]}  Nf6 {[%clk 0:02:57]} 2. d4 {[%clk 0:02:56]}  d5 {[%clk 0:02:54]} 3. g3 {[%clk 0:02:55]}  Bf5 {[%clk 0:02:52]} 4. Bg2 {[%clk 0:02:54]}  e6 {[%clk 0:02:49]} 5. c4 {[%clk 0:02:55]}  c6 {[%clk 0:02:49]} 6. Qb3 {[%clk 0:02:55]}  Qb6 {[%clk 0:02:49]} 7. c5 {[%clk 0:02:55]}  Qxb3 {[%clk 0:02:49]} 8. axb3 {[%clk 0:02:56]}  Be7 {[%clk 0:02:50]} 9. b4 {[%clk 0:02:56]}  O-O {[%clk 0:02:48]} 10. Nbd2 {[%clk 0:02:56]}  Na6 {[%clk 0:02:43]} 11. b5 {[%clk 0:02:37]}  cxb5 {[%clk 0:02:10]} 12. O-O {[%clk 0:02:36]}  Nb4 {[%clk 0:02:08]} 13. Nb3 {[%clk 0:02:21]}  Nc6 {[%clk 0:02:03]} 14. Na5 {[%clk 0:02:18]}  Nxa5 {[%clk 0:02:01]} 15. Rxa5 {[%clk 0:02:19]}  a6 {[%clk 0:01:59]} 16. Bf4 {[%clk 0:02:16]}  Nd7 {[%clk 0:01:55]} 17. c6 {[%clk 0:02:00]}  bxc6 {[%clk 0:01:55]} 18. Rfa1 {[%clk 0:02:00]}  Nb8 {[%clk 0:01:27]} 19. Bxb8 {[%clk 0:01:54]}  Rfxb8 {[%clk 0:01:27]} 20. Rxa6 {[%clk 0:01:55]}  Rxa6 {[%clk 0:01:28]} 21. Rxa6 {[%clk 0:01:55]}  c5 {[%clk 0:01:28]} 22. Ne5 {[%clk 0:01:53]}  Rc8 {[%clk 0:01:07]} 23. Ra7 {[%clk 0:01:36]}  Bf6 {[%clk 0:01:04]} 24. Nxf7 {[%clk 0:01:28]}  cxd4 {[%clk 0:00:48]} 25. h3 {[%clk 0:01:03]}  Rc6 {[%clk 0:00:37]} 26. g4 {[%clk 0:01:01]}  Bg6 {[%clk 0:00:37]} 27. Nh8 {[%clk 0:00:34]}  Rc8 {[%clk 0:00:14]} 28. Nxg6 {[%clk 0:00:33]}  hxg6 {[%clk 0:00:15]} 29. Rb7 {[%clk 0:00:33]}  Rc2 {[%clk 0:00:15]} 30. Rxb5 {[%clk 0:00:33]}  Rxe2 {[%clk 0:00:15]} 31. Bf1 {[%clk 0:00:28]}  Rd2 {[%clk 0:00:16]} 32. Rb8+ {[%clk 0:00:27]}  Kf7 {[%clk 0:00:16]} 33. b4 {[%clk 0:00:27]}  d3 {[%clk 0:00:15]} 34. Kg2 {[%clk 0:00:25]}  Bd4 {[%clk 0:00:16]} 35. Kg3 {[%clk 0:00:19]}  Rd1 {[%clk 0:00:15]} 36. Rb7+ {[%clk 0:00:13]}  Kg8 {[%clk 0:00:13]} 37. Bg2 {[%clk 0:00:11]}  d2 {[%clk 0:00:11]} 38. Bf3 {[%clk 0:00:08]}  Rb1 {[%clk 0:00:10]} 39. Re7 {[%clk 0:00:06]}  Rb3 {[%clk 0:00:10]} 0-1


[Site "https://www.chess.com"]

[Event "Titled Tuesday Blitz November 29 Late 2022"]
[White "Sanchez, Robert"]
[Black "Urbina Perez, Juan Antonio"]
[WhiteFideId "2034360"]
[BlackFideId "2217368"]
[WhiteElo "2322"]
[BlackElo "2197"]
[Result "0-1"]
[Round "06"]
[TimeControl "180+1"]
[Date "2022.11.30"]
[WhiteClock "0:00:58"]
[BlackClock "0:02:01"]

1. e4 {[%clk 0:03:00]}  c5 {[%clk 0:02:58]} 2. Nf3 {[%clk 0:03:00]}  e6 {[%clk 0:02:58]} 3. d4 {[%clk 0:02:58]}  cxd4 {[%clk 0:02:57]} 4. Nxd4 {[%clk 0:02:59]}  Bc5 {[%clk 0:02:57]} 5. Nb3 {[%clk 0:02:59]}  Bb6 {[%clk 0:02:58]} 6. Nc3 {[%clk 0:02:59]}  Ne7 {[%clk 0:02:57]} 7. Qe2 {[%clk 0:02:59]}  O-O {[%clk 0:02:57]} 8. Be3 {[%clk 0:02:59]}  f5 {[%clk 0:02:56]} 9. O-O-O {[%clk 0:02:57]}  Nbc6 {[%clk 0:02:54]} 10. f3 {[%clk 0:02:43]}  fxe4 {[%clk 0:02:43]} 11. Nxe4 {[%clk 0:02:30]}  d5 {[%clk 0:02:42]} 12. Nec5 {[%clk 0:02:14]}  Nf5 {[%clk 0:02:36]} 13. Bf2 {[%clk 0:02:11]}  a5 {[%clk 0:02:34]} 14. Nxe6 {[%clk 0:02:00]}  Bxe6 {[%clk 0:02:33]} 15. Qxe6+ {[%clk 0:02:00]}  Kh8 {[%clk 0:02:33]} 16. Bxb6 {[%clk 0:01:56]}  Qxb6 {[%clk 0:02:33]} 17. Rxd5 {[%clk 0:01:52]}  a4 {[%clk 0:02:19]} 18. Rxf5 {[%clk 0:01:42]}  Rfe8 {[%clk 0:02:11]} 19. Rb5 {[%clk 0:01:17]}  Qf2 {[%clk 0:02:03]} 20. Qxe8+ {[%clk 0:00:58]}  Rxe8 {[%clk 0:02:01]} 0-1


[Site "https://www.chess.com"]

[Event "Titled Tuesday Blitz November 29 Late 2022"]
[White "Schuster, Karsten"]
[Black "Kovacevic, Radmila"]
[WhiteFideId "4611071"]
[BlackFideId "933171"]
[WhiteElo "2294"]
[BlackElo "2208"]
[Result "1-0"]
[Round "06"]
[TimeControl "180+1"]
[Date "2022.11.30"]
[WhiteClock "0:01:47"]
[BlackClock "0:01:21"]

1. d4 {[%clk 0:03:00]}  e5 {[%clk 0:02:55]} 2. dxe5 {[%clk 0:03:00]}  Nc6 {[%clk 0:02:54]} 3. Nf3 {[%clk 0:02:59]}  Qe7 {[%clk 0:02:54]} 4. c3 {[%clk 0:02:58]}  Nxe5 {[%clk 0:02:54]} 5. Nxe5 {[%clk 0:02:58]}  Qxe5 {[%clk 0:02:55]} 6. Nd2 {[%clk 0:02:58]}  Nf6 {[%clk 0:02:53]} 7. Nf3 {[%clk 0:02:57]}  Qh5 {[%clk 0:02:52]} 8. Bf4 {[%clk 0:02:56]}  d6 {[%clk 0:02:46]} 9. e3 {[%clk 0:02:55]}  h6 {[%clk 0:02:43]} 10. Be2 {[%clk 0:02:55]}  Bg4 {[%clk 0:02:40]} 11. h3 {[%clk 0:02:53]}  g5 {[%clk 0:02:37]} 12. Bh2 {[%clk 0:02:49]}  Bd7 {[%clk 0:02:23]} 13. Ne5 {[%clk 0:02:39]}  g4 {[%clk 0:02:19]} 14. Nxd7 {[%clk 0:02:38]}  Nxd7 {[%clk 0:02:18]} 15. Bxg4 {[%clk 0:02:37]}  Qg5 {[%clk 0:02:16]} 16. Bf4 {[%clk 0:02:31]}  Qg6 {[%clk 0:02:11]} 17. Bxd7+ {[%clk 0:02:21]}  Kxd7 {[%clk 0:02:12]} 18. Qa4+ {[%clk 0:02:19]}  c6 {[%clk 0:02:07]} 19. O-O-O {[%clk 0:02:17]}  Qxg2 {[%clk 0:02:00]} 20. Qd4 {[%clk 0:02:12]}  Qg7 {[%clk 0:01:55]} 21. Be5 {[%clk 0:02:06]}  c5 {[%clk 0:01:30]} 22. Qa4+ {[%clk 0:01:55]}  Kc7 {[%clk 0:01:27]} 23. Bxg7 {[%clk 0:01:54]}  Bxg7 {[%clk 0:01:28]} 24. Qf4 {[%clk 0:01:49]}  Be5 {[%clk 0:01:24]} 25. Qxf7+ {[%clk 0:01:48]}  Kb6 {[%clk 0:01:21]} 26. f4 {[%clk 0:01:47]} 1-0


[Site "https://www.chess.com"]

[Event "Titled Tuesday Blitz November 29 Late 2022"]
[White "Suder, Jakub"]
[Black "Hansen, Eric"]
[WhiteFideId "1195310"]
[BlackFideId "2606771"]
[WhiteElo "2243"]
[BlackElo "2568"]
[Result "0-1"]
[Round "06"]
[TimeControl "180+1"]
[Date "2022.11.30"]
[WhiteClock "0:00:28"]
[BlackClock "0:01:29"]

1. d4 {[%clk 0:02:58]}  Nf6 {[%clk 0:02:59]} 2. c4 {[%clk 0:02:58]}  e6 {[%clk 0:03:00]} 3. Nc3 {[%clk 0:02:58]}  Bb4 {[%clk 0:03:00]} 4. f3 {[%clk 0:02:55]}  O-O {[%clk 0:02:59]} 5. a3 {[%clk 0:02:53]}  Bxc3+ {[%clk 0:03:00]} 6. bxc3 {[%clk 0:02:54]}  Nh5 {[%clk 0:03:00]} 7. Nh3 {[%clk 0:02:54]}  f5 {[%clk 0:03:00]} 8. Bg5 {[%clk 0:02:52]}  Qe8 {[%clk 0:03:00]} 9. e3 {[%clk 0:02:52]}  Nc6 {[%clk 0:03:00]} 10. Bd3 {[%clk 0:02:53]}  b6 {[%clk 0:03:00]} 11. O-O {[%clk 0:02:53]}  Ba6 {[%clk 0:03:00]} 12. Qe2 {[%clk 0:02:50]}  Na5 {[%clk 0:02:59]} 13. e4 {[%clk 0:02:49]}  f4 {[%clk 0:02:52]} 14. e5 {[%clk 0:02:39]}  d5 {[%clk 0:02:49]} 15. cxd5 {[%clk 0:02:35]}  Bxd3 {[%clk 0:02:48]} 16. Qxd3 {[%clk 0:02:36]}  exd5 {[%clk 0:02:48]} 17. Bh4 {[%clk 0:02:33]}  h6 {[%clk 0:02:45]} 18. Rae1 {[%clk 0:02:17]}  Qe6 {[%clk 0:02:43]} 19. Bf2 {[%clk 0:02:11]}  Nc4 {[%clk 0:02:42]} 20. a4 {[%clk 0:02:07]}  a6 {[%clk 0:02:42]} 21. Rb1 {[%clk 0:02:00]}  g5 {[%clk 0:02:33]} 22. Kh1 {[%clk 0:01:54]}  Ng7 {[%clk 0:02:31]} 23. Ng1 {[%clk 0:01:48]}  Qf5 {[%clk 0:02:30]} 24. Qe2 {[%clk 0:01:44]}  Ne6 {[%clk 0:02:28]} 25. g4 {[%clk 0:01:42]}  Qh7 {[%clk 0:02:26]} 26. Qa2 {[%clk 0:01:19]}  c6 {[%clk 0:02:12]} 27. Rb4 {[%clk 0:01:14]}  Qd3 {[%clk 0:02:08]} 28. Rc1 {[%clk 0:00:58]}  b5 {[%clk 0:02:08]} 29. Rbb1 {[%clk 0:00:53]}  h5 {[%clk 0:02:05]} 30. Rd1 {[%clk 0:00:49]}  Qh7 {[%clk 0:02:01]} 31. Qe2 {[%clk 0:00:49]}  hxg4 {[%clk 0:01:43]} 32. fxg4 {[%clk 0:00:48]}  f3 {[%clk 0:01:40]} 33. Nxf3 {[%clk 0:00:46]}  Nf4 {[%clk 0:01:39]} 34. Qe1 {[%clk 0:00:37]}  Qh3 {[%clk 0:01:30]} 35. Bg3 {[%clk 0:00:28]}  Qg2# {[%clk 0:01:29]} 0-1


[Site "https://www.chess.com"]

[Event "Titled Tuesday Blitz November 29 Late 2022"]
[White "Svane, Frederik"]
[Black "Papasimakopoulos, Alexandros"]
[WhiteFideId "12923044"]
[BlackFideId "4244125"]
[WhiteElo "2466"]
[BlackElo "2365"]
[Result "1-0"]
[Round "06"]
[TimeControl "180+1"]
[Date "2022.11.30"]
[WhiteClock "0:00:04"]
[BlackClock "0:00:11"]

1. d4 {[%clk 0:03:00]}  e6 {[%clk 0:03:00]} 2. e4 {[%clk 0:03:00]}  d5 {[%clk 0:02:59]} 3. Nd2 {[%clk 0:03:00]}  Nf6 {[%clk 0:02:59]} 4. e5 {[%clk 0:03:01]}  Nfd7 {[%clk 0:02:59]} 5. f4 {[%clk 0:03:01]}  c5 {[%clk 0:03:00]} 6. c3 {[%clk 0:03:02]}  Nc6 {[%clk 0:03:01]} 7. Ndf3 {[%clk 0:03:03]}  cxd4 {[%clk 0:03:02]} 8. cxd4 {[%clk 0:03:03]}  a5 {[%clk 0:03:03]} 9. Bd3 {[%clk 0:03:04]}  a4 {[%clk 0:03:03]} 10. Ne2 {[%clk 0:03:03]}  a3 {[%clk 0:03:04]} 11. O-O {[%clk 0:03:02]}  g6 {[%clk 0:03:04]} 12. bxa3 {[%clk 0:03:00]}  Bxa3 {[%clk 0:03:05]} 13. g4 {[%clk 0:02:48]}  h5 {[%clk 0:03:04]} 14. h3 {[%clk 0:02:48]}  hxg4 {[%clk 0:03:04]} 15. hxg4 {[%clk 0:02:49]}  Nb6 {[%clk 0:02:55]} 16. Kg2 {[%clk 0:02:38]}  Bxc1 {[%clk 0:02:51]} 17. Qxc1 {[%clk 0:02:30]}  Nb4 {[%clk 0:02:48]} 18. Bb1 {[%clk 0:02:17]}  Nc4 {[%clk 0:02:48]} 19. a3 {[%clk 0:02:14]}  Qa5 {[%clk 0:02:23]} 20. Bxg6 {[%clk 0:02:01]}  fxg6 {[%clk 0:02:01]} 21. axb4 {[%clk 0:02:01]}  Qxa1 {[%clk 0:01:59]} 22. Qxa1 {[%clk 0:02:02]}  Ne3+ {[%clk 0:01:59]} 23. Kg3 {[%clk 0:02:02]}  Rxa1 {[%clk 0:01:54]} 24. Rxa1 {[%clk 0:02:03]}  Kd7 {[%clk 0:01:45]} 25. Nc3 {[%clk 0:01:54]}  Kc6 {[%clk 0:01:26]} 26. Ra8 {[%clk 0:01:48]}  Nc2 {[%clk 0:01:10]} 27. b5+ {[%clk 0:01:43]}  Kc7 {[%clk 0:01:09]} 28. Nd1 {[%clk 0:00:45]}  Rh1 {[%clk 0:00:52]} 29. Nf2 {[%clk 0:00:45]}  Rb1 {[%clk 0:00:49]} 30. Nh4 {[%clk 0:00:23]}  Rb3+ {[%clk 0:00:45]} 31. Kh2 {[%clk 0:00:22]}  Nxd4 {[%clk 0:00:37]} 32. Nxg6 {[%clk 0:00:22]}  Rxb5 {[%clk 0:00:34]} 33. Ne7 {[%clk 0:00:18]}  Bd7 {[%clk 0:00:32]} 34. g5 {[%clk 0:00:19]}  Rb2 {[%clk 0:00:30]} 35. Kg2 {[%clk 0:00:16]}  Ne2 {[%clk 0:00:28]} 36. Kf3 {[%clk 0:00:16]}  Nxf4 {[%clk 0:00:28]} 37. g6 {[%clk 0:00:11]}  Nxg6 {[%clk 0:00:28]} 38. Nxg6 {[%clk 0:00:12]}  Rb3+ {[%clk 0:00:24]} 39. Kg4 {[%clk 0:00:09]}  b5 {[%clk 0:00:23]} 40. Nf4 {[%clk 0:00:09]}  Re3 {[%clk 0:00:20]} 41. N2d3 {[%clk 0:00:09]}  Bc8 {[%clk 0:00:17]} 42. Ra7+ {[%clk 0:00:08]}  Kb6 {[%clk 0:00:18]} 43. Ra8 {[%clk 0:00:06]}  Kb7 {[%clk 0:00:17]} 44. Ra1 {[%clk 0:00:04]}  Re4 {[%clk 0:00:17]} 45. Kg5 {[%clk 0:00:04]}  Kb6 {[%clk 0:00:17]} 46. Kf6 {[%clk 0:00:02]}  Re3 {[%clk 0:00:17]} 47. Rd1 {[%clk 0:00:02]}  Ka5 {[%clk 0:00:13]} 48. Nxe6 {[%clk 0:00:02]}  Bxe6 {[%clk 0:00:12]} 49. Kxe6 {[%clk 0:00:03]}  d4 {[%clk 0:00:12]} 50. Kd7 {[%clk 0:00:03]}  b4 {[%clk 0:00:11]} 51. e6 {[%clk 0:00:03]}  b3 {[%clk 0:00:10]} 52. e7 {[%clk 0:00:04]}  Kb5 {[%clk 0:00:10]} 53. e8=Q {[%clk 0:00:04]}  Rxe8 {[%clk 0:00:10]} 54. Kxe8 {[%clk 0:00:05]}  Kc4 {[%clk 0:00:11]} 55. Kd7 {[%clk 0:00:04]}  Kc3 {[%clk 0:00:11]} 56. Ne1 {[%clk 0:00:02]}  d3 {[%clk 0:00:10]} 57. Rxd3+ {[%clk 0:00:02]}  Kc4 {[%clk 0:00:11]} 58. Rd1 {[%clk 0:00:02]}  b2 {[%clk 0:00:10]} 59. Nf3 {[%clk 0:00:03]}  Kc3 {[%clk 0:00:10]} 60. Rf1 {[%clk 0:00:02]}  Kc2 {[%clk 0:00:11]} 61. Rf2+ {[%clk 0:00:02]}  Kc1 {[%clk 0:00:09]} 62. Nd2 {[%clk 0:00:03]}  Kc2 {[%clk 0:00:09]} 63. Kd6 {[%clk 0:00:03]}  Kd3 {[%clk 0:00:09]} 64. Kd5 {[%clk 0:00:04]}  b1=Q {[%clk 0:00:10]} 65. Nxb1 {[%clk 0:00:04]}  Ke3 {[%clk 0:00:11]} 66. Ra2 {[%clk 0:00:04]} 1-0


[Site "https://www.chess.com"]

[Event "Titled Tuesday Blitz November 29 Late 2022"]
[White "Urazayev, Arystanbek"]
[Black "Souleidis, Georgios"]
[WhiteFideId "13709810"]
[BlackFideId "4206827"]
[WhiteElo "2441"]
[BlackElo "2401"]
[Result "1-0"]
[Round "06"]
[TimeControl "180+1"]
[Date "2022.11.30"]
[WhiteClock "0:00:52"]
[BlackClock "0:00:14"]

1. c4 {[%clk 0:03:00]}  e5 {[%clk 0:02:59]} 2. Nc3 {[%clk 0:03:00]}  Nf6 {[%clk 0:03:00]} 3. Nf3 {[%clk 0:03:01]}  e4 {[%clk 0:02:59]} 4. Ng5 {[%clk 0:03:01]}  c6 {[%clk 0:03:00]} 5. Qa4 {[%clk 0:03:02]}  Qe7 {[%clk 0:02:58]} 6. Qc2 {[%clk 0:03:02]}  b5 {[%clk 0:02:58]} 7. Ngxe4 {[%clk 0:03:00]}  Nxe4 {[%clk 0:02:52]} 8. Nxe4 {[%clk 0:02:54]}  bxc4 {[%clk 0:02:51]} 9. b3 {[%clk 0:02:51]}  d5 {[%clk 0:02:49]} 10. Ng3 {[%clk 0:02:51]}  cxb3 {[%clk 0:02:48]} 11. axb3 {[%clk 0:02:51]}  h5 {[%clk 0:02:36]} 12. Bb2 {[%clk 0:02:46]}  h4 {[%clk 0:02:31]} 13. Nf5 {[%clk 0:02:46]}  Qg5 {[%clk 0:02:29]} 14. Nd4 {[%clk 0:02:41]}  Bd7 {[%clk 0:02:15]} 15. e3 {[%clk 0:02:40]}  h3 {[%clk 0:02:10]} 16. g3 {[%clk 0:02:26]}  Bb4 {[%clk 0:02:02]} 17. Ba3 {[%clk 0:02:20]}  Bxa3 {[%clk 0:01:58]} 18. Rxa3 {[%clk 0:02:21]}  O-O {[%clk 0:01:57]} 19. b4 {[%clk 0:02:14]}  Qe7 {[%clk 0:01:50]} 20. Qc5 {[%clk 0:02:12]}  Qe4 {[%clk 0:01:41]} 21. f3 {[%clk 0:02:12]}  Qb1+ {[%clk 0:01:39]} 22. Kf2 {[%clk 0:02:13]}  Qb2 {[%clk 0:01:36]} 23. Qc3 {[%clk 0:02:12]}  Qxc3 {[%clk 0:01:33]} 24. dxc3 {[%clk 0:02:13]}  Rc8 {[%clk 0:01:22]} 25. Nb3 {[%clk 0:02:10]}  Bf5 {[%clk 0:01:14]} 26. g4 {[%clk 0:02:09]}  Bc2 {[%clk 0:01:11]} 27. Nc5 {[%clk 0:02:04]}  Rc7 {[%clk 0:01:05]} 28. Bxh3 {[%clk 0:02:04]}  Nd7 {[%clk 0:01:05]} 29. Na6 {[%clk 0:01:57]}  Rb7 {[%clk 0:01:02]} 30. g5 {[%clk 0:01:56]}  Nb6 {[%clk 0:01:00]} 31. Nc5 {[%clk 0:01:56]}  Rc7 {[%clk 0:00:59]} 32. Rc1 {[%clk 0:01:48]}  Bg6 {[%clk 0:00:58]} 33. Bf1 {[%clk 0:01:47]}  Bf5 {[%clk 0:00:56]} 34. c4 {[%clk 0:01:42]}  Nd7 {[%clk 0:00:50]} 35. Na6 {[%clk 0:01:35]}  Rb7 {[%clk 0:00:49]} 36. cxd5 {[%clk 0:01:29]}  cxd5 {[%clk 0:00:50]} 37. Rc7 {[%clk 0:01:21]}  Rb6 {[%clk 0:00:31]} 38. Kg3 {[%clk 0:01:20]}  Be6 {[%clk 0:00:30]} 39. Nc5 {[%clk 0:01:16]}  Nxc5 {[%clk 0:00:27]} 40. bxc5 {[%clk 0:01:17]}  Rb1 {[%clk 0:00:28]} 41. Bd3 {[%clk 0:01:14]}  Rc1 {[%clk 0:00:26]} 42. Raxa7 {[%clk 0:01:10]}  Rxa7 {[%clk 0:00:27]} 43. Rxa7 {[%clk 0:01:11]}  Rxc5 {[%clk 0:00:25]} 44. g6 {[%clk 0:01:01]}  fxg6 {[%clk 0:00:24]} 45. Bxg6 {[%clk 0:01:01]}  Kf8 {[%clk 0:00:24]} 46. Kf4 {[%clk 0:01:00]}  Rc6 {[%clk 0:00:16]} 47. h4 {[%clk 0:00:55]}  Rc4+ {[%clk 0:00:14]} 48. Ke5 {[%clk 0:00:54]}  Bc8 {[%clk 0:00:14]} 49. Rf7+ {[%clk 0:00:52]}  Kg8 {[%clk 0:00:14]} 50. Re7 {[%clk 0:00:52]} 1-0


[Site "https://www.chess.com"]

[Event "Titled Tuesday Blitz November 29 Late 2022"]
[White "Wieczorek, Oskar"]
[Black "Korobov, Anton"]
[WhiteFideId "1133950"]
[BlackFideId "14105730"]
[WhiteElo "2404"]
[BlackElo "2635"]
[Result "0-1"]
[Round "06"]
[TimeControl "180+1"]
[Date "2022.11.30"]
[WhiteClock "0:00:01"]
[BlackClock "0:01:38"]

1. e4 {[%clk 0:03:00]}  c5 {[%clk 0:02:58]} 2. Nf3 {[%clk 0:03:01]}  d6 {[%clk 0:02:58]} 3. d4 {[%clk 0:03:01]}  cxd4 {[%clk 0:02:58]} 4. Nxd4 {[%clk 0:03:02]}  Nf6 {[%clk 0:02:58]} 5. Nc3 {[%clk 0:03:02]}  a6 {[%clk 0:02:59]} 6. Be2 {[%clk 0:03:00]}  e6 {[%clk 0:02:58]} 7. f4 {[%clk 0:02:56]}  Be7 {[%clk 0:02:54]} 8. O-O {[%clk 0:02:56]}  Qc7 {[%clk 0:02:53]} 9. a4 {[%clk 0:02:56]}  O-O {[%clk 0:02:52]} 10. Kh1 {[%clk 0:02:55]}  Nc6 {[%clk 0:02:52]} 11. Be3 {[%clk 0:02:56]}  Bd7 {[%clk 0:02:50]} 12. Nb3 {[%clk 0:02:55]}  b6 {[%clk 0:02:50]} 13. Bf3 {[%clk 0:02:54]}  Bc8 {[%clk 0:02:49]} 14. g4 {[%clk 0:02:54]}  Nd7 {[%clk 0:02:50]} 15. g5 {[%clk 0:02:54]}  Bb7 {[%clk 0:02:50]} 16. Bg2 {[%clk 0:02:55]}  Rfe8 {[%clk 0:02:45]} 17. Qe2 {[%clk 0:02:52]}  Nc5 {[%clk 0:02:41]} 18. Rf3 {[%clk 0:02:39]}  g6 {[%clk 0:02:30]} 19. Rh3 {[%clk 0:02:32]}  Nb4 {[%clk 0:02:28]} 20. Rf1 {[%clk 0:02:19]}  d5 {[%clk 0:02:21]} 21. Bd4 {[%clk 0:02:05]}  Nxe4 {[%clk 0:02:02]} 22. Nxe4 {[%clk 0:01:49]}  dxe4 {[%clk 0:02:00]} 23. Qf2 {[%clk 0:00:57]}  h5 {[%clk 0:01:57]} 24. gxh6 {[%clk 0:00:26]}  Kh7 {[%clk 0:01:57]} 25. Rc3 {[%clk 0:00:23]}  Qd7 {[%clk 0:01:52]} 26. Bxb6 {[%clk 0:00:16]}  Nd5 {[%clk 0:01:52]} 27. Rd1 {[%clk 0:00:08]}  Qxa4 {[%clk 0:01:46]} 28. Ra1 {[%clk 0:00:01]}  Qb5 {[%clk 0:01:38]} 0-1


[Site "https://www.chess.com"]

[Event "Titled Tuesday Blitz November 29 Late 2022"]
[White "Winkels, Marcel"]
[Black "Rian, Kapriaga"]
[WhiteFideId "1003887"]
[BlackFideId "7103263"]
[WhiteElo "1900"]
[BlackElo "2315"]
[Result "0-1"]
[Round "06"]
[TimeControl "180+1"]
[Date "2022.11.30"]
[WhiteClock "0:00:13"]
[BlackClock "0:01:47"]

1. e4 {[%clk 0:03:00]}  c6 {[%clk 0:02:59]} 2. d4 {[%clk 0:02:59]}  d5 {[%clk 0:02:59]} 3. e5 {[%clk 0:02:59]}  c5 {[%clk 0:02:58]} 4. Bb5+ {[%clk 0:02:56]}  Bd7 {[%clk 0:02:57]} 5. Bxd7+ {[%clk 0:02:55]}  Qxd7 {[%clk 0:02:56]} 6. c3 {[%clk 0:02:55]}  cxd4 {[%clk 0:02:56]} 7. cxd4 {[%clk 0:02:55]}  Nc6 {[%clk 0:02:55]} 8. Nf3 {[%clk 0:02:55]}  e6 {[%clk 0:02:55]} 9. O-O {[%clk 0:02:54]}  Nge7 {[%clk 0:02:55]} 10. h4 {[%clk 0:02:51]}  Nf5 {[%clk 0:02:54]} 11. Be3 {[%clk 0:02:48]}  h5 {[%clk 0:02:52]} 12. Nc3 {[%clk 0:02:45]}  Be7 {[%clk 0:02:51]} 13. a3 {[%clk 0:02:40]}  Nxh4 {[%clk 0:02:47]} 14. Nxh4 {[%clk 0:02:34]}  Bxh4 {[%clk 0:02:46]} 15. f4 {[%clk 0:02:18]}  g6 {[%clk 0:02:44]} 16. Nb5 {[%clk 0:02:09]}  Be7 {[%clk 0:02:43]} 17. Rc1 {[%clk 0:02:08]}  a6 {[%clk 0:02:43]} 18. Nc3 {[%clk 0:02:07]}  Rc8 {[%clk 0:02:42]} 19. Qb3 {[%clk 0:02:06]}  b5 {[%clk 0:02:35]} 20. Ne2 {[%clk 0:01:59]}  Kf8 {[%clk 0:02:31]} 21. Rce1 {[%clk 0:01:49]}  Kg7 {[%clk 0:02:31]} 22. Nc1 {[%clk 0:01:26]}  Na5 {[%clk 0:02:29]} 23. Qd1 {[%clk 0:01:13]}  Qc6 {[%clk 0:02:22]} 24. Nd3 {[%clk 0:01:11]}  Qc2 {[%clk 0:02:17]} 25. Re2 {[%clk 0:01:10]}  Qxd1 {[%clk 0:02:16]} 26. Rxd1 {[%clk 0:01:10]}  Nb3 {[%clk 0:02:11]} 27. Rf1 {[%clk 0:00:49]}  Rc4 {[%clk 0:02:09]} 28. g4 {[%clk 0:00:46]}  hxg4 {[%clk 0:02:08]} 29. Rg2 {[%clk 0:00:46]}  Nxd4 {[%clk 0:01:59]} 30. Bxd4 {[%clk 0:00:22]}  Rxd4 {[%clk 0:01:58]} 31. Ne1 {[%clk 0:00:20]}  Bc5 {[%clk 0:01:52]} 32. Rg3 {[%clk 0:00:13]}  Rd2+ {[%clk 0:01:47]} 0-1


[Site "https://www.chess.com"]